bitfinex/quotes_ETHUSD_20250925
["timestamp","ask_amount","ask_price","bid_price","bid_amount"]
[1758821746527,9.406777,3892.0,3890.4,3.0]
[1758821746721,9.406777,3892.0,3891.2,2.56984722]
[1758821746722,7.5398,3892.0,3891.2,2.56984722]
[1758821746953,7.5398,3892.0,3890.4,2.57042977]
[1758821747155,0.2308,3891.9,3890.5,1.35647298]
[1758821747342,22.654023,3891.8,3891.0,2.5699713]
[1758821747666,0.2308,3891.7,3890.3,3.4433]
[1758821747954,0.2308,3891.7,3890.4,2.57042977]
[1758821748320,0.2308,3891.7,3890.3,3.4433]
[1758821748523,0.2308,3891.7,3890.5,2.5703637]
[1758821748720,0.2308,3891.7,3891.2,2.5698488]
[1758821748942,0.6715,3891.6,3891.1,2.56991611]
[1758821749139,0.2308,3891.6,3891.5,2.56970319]
[1758821749378,7.306,3891.6,3891.3,2.56980091]
[1758821749675,0.2308,3892.1,3891.4,0.02569769]
[1758821749875,7.306,3892.0,3891.4,2.59546162]
[1758821750064,7.306,3892.0,3891.7,2.56956043]
[1758821750266,7.306,3892.0,3891.6,2.5696213]
[1758821750447,0.2308,3891.9,3891.6,2.5696213]
[1758821750648,0.2308,3892.4,3890.9,0.4433]
[1758821750854,2.141,3892.4,3891.2,3.0]
[1758821751092,2.141,3892.4,3892.3,2.56917503]
[1758821751298,2.141,3892.4,3891.3,0.6853]
[1758821751299,0.2308,3892.8,3891.4,3.0]
[1758821751451,2.141,3893.0,3892.9,2.56871687]
[1758821751640,2.141,3893.0,3891.4,3.0]
[1758821751641,4.959,3893.4,3893.1,2.56861688]
[1758821751960,2.141,3893.3,3892.6,2.56897703]
[1758821752160,0.2308,3893.8,3892.5,2.56901976]
[1758821752363,7.9755,3893.7,3892.3,0.4433]
[1758821752562,0.2308,3893.6,3891.8,0.242]
[1758821752865,0.2308,3893.6,3892.2,3.0]
[1758821753045,7.303,3893.5,3892.3,0.6853]
[1758821753246,7.303,3893.5,3893.2,2.56853027]
[1758821753566,0.6715,3893.4,3891.8,0.242]
[1758821753753,0.6715,3893.4,3892.0,5.56932099]
[1758821753959,0.6715,3893.4,3892.6,2.56892598]
[1758821754156,0.6715,3893.4,3891.8,3.242]
[1758821754157,0.2308,3893.4,3891.8,3.242]
[1758821754478,0.2308,3893.4,3893.1,2.56858292]
[1758821754677,5.16,3893.5,3892.2,0.242]
[1758821754870,2.141,3893.4,3892.2,3.242]
[1758821755068,2.141,3893.4,3892.7,2.56888904]
[1758821755267,2.141,3893.4,3892.3,0.62546644]
[1758821755473,2.141,3893.4,3893.3,2.56851514]
[1758821755670,0.6715,3893.9,3892.8,2.56878321]
[1758821755875,0.001,3894.0,3892.9,2.59445523]
[1758821756049,0.001,3894.0,3893.7,2.56823757]
[1758821756384,0.001,3894.0,3892.6,3.6853]
[1758821756385,0.001,3894.0,3893.3,2.56851281]
[1758821756589,5.3888,3893.9,3892.5,3.0]
[1758821756755,7.299,3893.9,3892.6,3.56918674]
[1758821757089,7.299,3893.9,3893.8,2.56818532]
[1758821757290,0.001,3894.0,3893.9,2.56811936]
[1758821758094,0.001,3894.0,3893.7,2.56824442]
[1758821758393,0.001,3894.0,3893.8,2.56818532]
[1758821758589,2.142,3894.0,3893.9,2.56811936]
[1758821758791,2.142,3894.0,3893.2,0.6853]
[1758821759095,5.155,3893.9,3892.8,0.4433]
[1758821759389,0.001,3894.0,3893.9,2.56811936]
[1758821759576,5.156,3894.0,3892.9,0.242]
[1758821759779,7.297,3894.0,3892.9,3.92311845]
[1758821759980,7.297,3894.0,3892.9,0.92311845]
[1758821760499,7.297,3894.0,3892.6,0.55691277]
[1758821760662,7.297,3894.0,3892.3,0.4433]
[1758821760663,0.2308,3893.9,3892.3,0.4433]
[1758821761065,0.2308,3893.9,3893.3,2.56851029]
[1758821761265,0.2308,3893.9,3893.4,2.56844859]
[1758821761562,0.6715,3893.8,3892.3,3.4433]
[1758821761759,0.6715,3893.8,3893.1,2.56862383]
[1758821761978,0.6715,3893.8,3893.3,2.69650863]
[1758821762163,0.6715,3893.7,3893.3,0.128]
[1758821762364,0.6715,3893.6,3893.3,2.69647302]
[1758821762591,0.2308,3893.5,3893.3,2.696508]
[1758821762778,7.292,3893.4,3893.3,0.128]
[1758821762983,5.8353,3893.4,3892.7,2.56884927]
[1758821763180,2.141,3893.3,3892.9,0.128]
[1758821763612,0.246,3893.9,3893.1,2.56864709]
[1758821763814,9.805594,3893.8,3893.2,0.128]
[1758821763963,7.291,3893.8,3893.2,0.128]
[1758821764701,2.56837858,3893.6,3892.6,2.56897395]
[1758821764862,0.792,3893.4,3892.8,0.128]
[1758821765069,2.56880461,3892.9,3892.3,0.128]
[1758821765268,10.813424,3892.8,3892.3,0.128]
[1758821765563,0.792,3892.5,3891.9,0.128]
[1758821765800,3.3611818,3892.3,3890.5,2.5703637]
[1758821766012,0.128,3892.1,3891.4,0.128]
[1758821766298,16.785798,3892.0,3891.4,0.128]
[1758821766607,2.40061,3891.9,3891.4,0.128]
[1758821766768,2.56965299,3891.6,3889.6,2.141]
[1758821767100,8.770426,3891.5,3890.8,2.57011235]
[1758821767305,5.8313,3891.4,3890.0,0.4745]
[1758821767466,5.8313,3891.4,3891.0,2.56998414]
[1758821767661,0.6853,3891.3,3890.2,2.57056192]
[1758821767866,2.141,3891.2,3890.1,0.002]
[1758821768121,2.141,3891.2,3890.6,2.57023492]
[1758821768320,2.141,3891.2,3890.8,2.57014633]
[1758821768464,0.6853,3891.1,3890.1,0.002]
[1758821768664,1.04584979,3891.1,3890.6,2.5702973]
[1758821768870,6.708504,3891.0,3890.1,0.002]
[1758821769070,2.870007,3890.9,3890.1,0.002]
[1758821769316,0.246,3891.0,3890.1,0.002]
[1758821769470,5.144,3890.8,3890.7,2.57023157]
[1758821769806,2.141,3891.6,3890.7,0.96772316]
[1758821769993,7.285,3891.5,3891.4,2.56976923]
[1758821770370,7.531,3891.5,3890.3,3.0]
[1758821770570,7.531,3891.5,3890.9,2.57005136]
[1758821770801,7.531,3891.5,3890.2,2.57056192]
[1758821771005,0.246,3891.5,3891.2,2.56986668]
[1758821771169,5.142,3891.4,3891.2,2.56986668]
[1758821771368,0.2422,3891.3,3890.3,0.4449]
[1758821771571,24.01204934,3891.2,3890.1,2.57261806]
[1758821771870,24.01204934,3891.2,3890.1,0.002]
[1758821771871,10.209616,3891.1,3890.1,0.002]
[1758821772209,6.937464,3891.0,3890.1,0.002]
[1758821772506,10.36922,3890.9,3890.1,0.002]
[1758821772689,18.855314,3890.8,3890.1,0.002]
[1758821772888,2.57029764,3890.6,3890.1,0.002]
[1758821773065,7.294781,3890.5,3890.1,0.002]
[1758821773266,2.57056192,3890.2,3890.1,0.002]
[1758821773682,30.96109792,3890.2,3890.1,0.002]
[1758821773905,30.96109792,3890.2,3889.7,0.002]
[1758821773906,27.614171,3890.2,3889.7,0.002]
[1758821774069,3.36282626,3889.8,3889.7,0.002]
[1758821774509,3.36282626,3889.8,3889.3,0.002]
[1758821774510,3.36309065,3889.4,3889.3,0.002]
[1758821774799,3.36342122,3888.9,3887.3,0.4449]
[1758821775004,4.07182122,3888.9,3887.3,0.4449]
[1758821775204,11.35282122,3888.9,3886.7,0.2473]
[1758821775510,11.35282122,3888.9,3887.5,2.57233081]
[1758821775672,11.35282122,3888.9,3886.8,3.01768983]
[1758821775673,35.45202122,3888.9,3887.3,2.57241646]
[1758821775980,35.45202122,3888.9,3887.2,2.5725112]
[1758821776168,0.792,3887.8,3885.8,2.5734133]
[1758821776373,0.792,3887.4,3885.5,2.57360985]
[1758821776570,11.145478,3887.7,3885.9,0.4449]
[1758821776571,0.7084,3887.7,3885.9,0.4449]
[1758821776883,0.128,3887.4,3886.7,0.128]
[1758821777084,7.087143,3887.3,3886.7,0.128]
[1758821777290,0.792,3887.2,3885.9,0.4449]
[1758821777602,0.792,3887.2,3886.5,2.57298822]
[1758821777777,7.28,3887.1,3886.5,2.57295317]
[1758821777982,7.28,3887.1,3886.0,0.2473]
[1758821778207,7.807755,3887.0,3886.2,2.57314567]
[1758821778409,8.049955,3887.0,3886.3,2.57314121]
[1758821778573,7.279,3886.9,3886.4,2.57303967]
[1758821778769,5.137,3886.8,3885.8,2.57342037]
[1758821778998,0.2422,3886.7,3885.6,2.58646026]
[1758821779199,0.2422,3886.6,3885.6,0.01286802]
[1758821779508,15.06057,3886.5,3885.6,2.58640829]
[1758821779807,2.904472,3886.4,3885.9,2.57335195]
[1758821780011,7.278,3886.3,3885.8,2.57347264]
[1758821780320,0.2422,3886.6,3885.3,0.02573803]
[1758821780613,5.135,3886.5,3885.3,0.28570418]
[1758821780788,0.7084,3887.1,3885.4,2.57373758]
[1758821780992,16.009707,3887.0,3884.3,3.0]
[1758821781205,0.792,3886.7,3884.7,3.0]
[1758821781405,16.62481156,3886.6,3884.6,3.0]
[1758821781612,7.38483231,3886.5,3885.6,2.5735858]
[1758821781813,4.223092,3886.4,3885.8,2.57346471]
[1758821782113,17.611415,3886.3,3885.3,2.57376332]
[1758821782316,0.792,3886.1,3884.4,0.4449]
[1758821782516,5.3772,3886.0,3885.2,2.57385353]
[1758821782719,5.3772,3886.0,3884.1,1.82160255]
[1758821782720,0.792,3885.8,3884.1,1.82160255]
[1758821782920,0.792,3885.3,3884.3,2.57443894]
[1758821783109,14.52522238,3885.4,3884.3,2.57440695]
[1758821783110,0.792,3885.1,3884.3,2.57440695]
[1758821783415,3.418691,3885.0,3884.2,2.57447478]
[1758821783606,6.321794,3884.9,3884.1,4.39617999]
[1758821783814,8.480222,3884.8,3884.1,1.82160255]
[1758821784014,5.224382,3884.8,3884.1,1.82160255]
[1758821784215,3.480706,3884.7,3884.1,1.82160255]
[1758821784424,3.36653272,3884.2,3884.1,1.82160255]
[1758821784615,3.36653272,3884.2,3883.3,12.0]
[1758821784616,6.6334,3884.2,3883.3,12.0]
[1758821784953,6.36681356,3883.8,3883.3,12.0]
[1758821785108,0.792,3883.6,3883.3,12.0]
[1758821785311,0.792,3883.4,3883.3,12.0]
[1758821785491,8.241303,3883.4,3883.3,12.0]
[1758821785695,4.07546308,3883.4,3883.3,12.0]
[1758821785943,1.5004,3883.4,3883.3,12.0]
[1758821786247,0.4662,3884.0,3883.4,2.57500937]
[1758821786407,2.144,3883.8,3883.3,14.57511238]
[1758821786632,2.3862,3883.8,3883.3,12.0]
[1758821786829,0.4662,3883.7,3883.3,12.0]
[1758821787131,6.36706308,3883.4,3883.3,3.9144774]
[1758821787327,12.20746308,3883.4,3883.3,3.9144774]
[1758821787531,42.20746308,3883.4,3883.3,3.9144774]
[1758821788218,35.27953608,3883.4,3883.3,3.9144774]
[1758821788420,27.736143,3883.4,3883.3,3.9144774]
[1758821788744,2.144,3883.4,3883.3,3.9144774]
[1758821788944,7.275,3883.4,3883.3,3.9144774]
[1758821789836,8.067,3883.4,3883.3,3.9144774]
[1758821790039,10.50215,3883.4,3883.3,3.9144774]
[1758821790418,14.57761308,3883.4,3883.3,3.9144774]
[1758821790613,0.2422,3883.9,3883.3,3.9144774]
[1758821790839,2.145,3883.8,3883.4,0.002]
[1758821791049,7.139695,3883.7,3883.4,0.002]
[1758821791254,2.57539467,3882.9,3882.8,0.008]
[1758821791417,13.89993414,3882.9,3882.8,0.008]
[1758821791762,0.792,3882.7,3881.5,0.35471855]
[1758821792047,8.24093947,3882.9,3882.6,0.002]
[1758821792256,3.36752733,3882.7,3882.6,0.002]
[1758821792470,3.36752733,3882.7,3881.5,0.35471855]
[1758821792471,45.31722238,3882.7,3881.5,0.35471855]
[1758821792619,0.792,3881.5,3880.9,0.09478388]
[1758821792945,3.792,3880.9,3877.5,2.57895883]
[1758821793145,3.792,3880.9,3877.6,1.2473]
[1758821793146,14.52522238,3880.2,3877.6,1.2473]
[1758821793349,0.792,3881.1,3877.6,1.2473]
[1758821793350,3.154631,3880.1,3878.6,0.4449]
[1758821793573,5.129,3880.1,3878.5,0.2473]
[1758821793867,2.57738601,3879.9,3877.6,1.0]
[1758821794017,0.792,3879.6,3877.7,0.2473]
[1758821794250,2.57778465,3879.3,3877.6,1.0]
[1758821794445,0.792,3879.0,3877.7,0.2473]
[1758821794686,10.669648,3878.9,3877.6,1.0]
[1758821794852,9.77736,3878.8,3877.8,2.57878178]
[1758821795054,9.77736,3878.8,3877.6,1.0]
[1758821795256,14.52522238,3878.6,3877.6,1.0]
[1758821795500,13.805475,3878.5,3877.6,1.0]
[1758821795648,13.805475,3878.5,3878.4,2.57838283]
[1758821795649,5.13,3878.5,3878.4,2.57838283]
[1758821795853,1.77522285,3883.6,3878.5,3.0]
[1758821796097,14.52522238,3880.8,3878.6,0.6922]
[1758821796264,14.52522238,3880.1,3878.6,0.2473]
[1758821796584,24.883495,3880.7,3878.7,0.4449]
[1758821796585,2.146,3880.0,3878.7,0.4449]
[1758821796748,0.40425699,3880.8,3878.8,0.2473]
[1758821796749,13.628686,3879.9,3878.8,0.2473]
[1758821796955,9.99624,3879.8,3878.4,0.2473]
[1758821797272,5.13,3879.7,3878.5,0.4449]
[1758821797477,2.146,3880.2,3878.5,0.4449]
[1758821797478,2.146,3880.2,3879.5,2.57765175]
[1758821797682,0.4662,3880.8,3878.5,0.4449]
[1758821797683,6.708,3880.9,3880.4,2.57703292]
[1758821797923,6.708,3880.9,3879.6,3.34036506]
[1758821797924,10.883187,3880.8,3879.6,0.2473]
[1758821798054,5.131,3880.8,3879.7,0.4449]
[1758821798397,5.131,3881.2,3881.1,2.57658911]
[1758821798550,7.278,3881.6,3880.1,0.4449]
[1758821798746,7.278,3881.6,3880.2,0.2473]
[1758821798970,7.9864,3881.6,3879.9,0.2473]
[1758821799150,0.2422,3882.1,3880.0,3.04794258]
[1758821799352,3.035,3882.0,3881.9,2.57605811]
[1758821799570,3.035,3882.0,3881.7,2.57615475]
[1758821799571,0.888,3882.0,3881.7,0.1288]
[1758821799788,0.888,3882.0,3880.9,0.2473]
[1758821799990,6.9522,3882.7,3882.3,2.5757927]
[1758821799991,6.71,3882.7,3882.3,2.5757927]
[1758821800167,2.147,3882.8,3882.7,2.57552733]
[1758821800372,2.147,3883.4,3882.7,0.2473]
[1758821800690,5.131,3883.2,3883.1,2.57526203]
[1758821800892,0.2422,3885.0,3883.1,0.6922]
[1758821801110,14.52522238,3884.7,3882.5,0.2346]
[1758821801257,14.52522238,3884.0,3881.7,0.4369]
[1758821801586,2.57479787,3883.8,3881.7,0.4369]
[1758821801808,2.57526472,3883.1,3881.7,0.4369]
[1758821802109,9.006325,3883.0,3881.6,0.2346]
[1758821802403,2.147,3882.9,3881.6,0.6715]
[1758821802579,2.147,3882.9,3882.1,2.5758738]
[1758821802783,6.949523,3882.1,3881.0,0.2346]
[1758821803009,16.095973,3882.0,3880.5,0.2346]
[1758821803326,9.85400461,3882.0,3881.0,2.57659106]
[1758821803525,9.85400461,3882.0,3879.8,0.2346]
[1758821803526,2.57638463,3881.5,3879.8,0.2346]
[1758821803707,2.57619718,3881.7,3880.7,2.57685297]
[1758821803708,8.936872,3881.4,3880.7,2.57685297]
[1758821803905,8.936872,3881.4,3879.8,0.2346]
[1758821803906,30.6745,3881.3,3879.8,0.2346]
[1758821804076,6.599311,3881.2,3879.8,0.2346]
[1758821804271,4.142058,3881.1,3879.0,3.24942263]
[1758821804471,4.142058,3881.1,3879.4,2.57771696]
[1758821804472,0.6745,3881.0,3879.4,2.57771696]
[1758821804678,8.53492,3880.9,3879.7,2.57746277]
[1758821804876,5.139,3880.9,3880.5,2.5769667]
[1758821805111,5.137,3880.9,3880.5,0.2346]
[1758821805708,5.137,3880.9,3880.8,2.57678829]
[1758821806209,5.132,3881.4,3880.3,0.2346]
[1758821806411,5.132,3881.4,3880.4,2.57705391]
[1758821806608,16.306099,3881.3,3880.3,0.2346]
[1758821806808,5.227002,3881.2,3880.4,2.57705391]
[1758821807009,5.227002,3881.2,3880.3,0.2346]
[1758821807010,5.6452,3881.4,3880.6,2.57691083]
[1758821807209,5.78322,3881.3,3880.4,2.57705391]
[1758821807511,24.876295,3881.3,3879.1,0.2346]
[1758821807711,14.52522238,3880.9,3879.3,2.57778129]
[1758821807922,2.57764629,3879.6,3878.5,0.2346]
[1758821808100,6.711,3879.8,3879.5,0.003]
[1758821808304,7.088,3879.7,3879.5,0.003]
[1758821808813,3.43,3879.6,3879.5,0.003]
[1758821809017,2.722376,3879.6,3879.5,0.003]
[1758821809230,7.088,3879.7,3879.5,0.003]
[1758821809433,7.088,3879.7,3879.6,2.57758531]
[1758821809607,9.2735,3879.7,3879.5,0.003]
[1758821809813,7.088,3879.7,3879.5,0.003]
[1758821811142,4.416,3879.6,3879.5,0.003]
[1758821811364,7.66808531,3879.6,3879.5,0.003]
[1758821811500,2.57765175,3879.5,3877.6,1.0]
[1758821811801,9.5335,3879.4,3877.6,1.0]
[1758821811997,3.0,3879.2,3877.6,1.0]
[1758821812203,0.792,3878.9,3877.6,1.0]
[1758821812453,2.57859318,3878.1,3877.6,1.0]
[1758821812631,2.57924737,3877.1,3877.0,0.09580876]
[1758821813005,2.57924737,3877.1,3874.6,2.18668492]
[1758821813006,2.08004592,3875.9,3874.6,1.95208492]
[1758821813134,9.93575051,3875.9,3875.8,4.32326689]
[1758821813345,9.93575051,3875.9,3874.6,1.95208492]
[1758821813346,2.58070733,3875.0,3874.6,1.95208492]
[1758821813514,7.417,3874.9,3874.6,1.95208492]
[1758821813708,9.365573,3874.8,3874.6,1.95208492]
[1758821814030,7.902131,3874.8,3874.6,1.95208492]
[1758821814343,15.73186636,3874.8,3874.6,1.95208492]
[1758821814544,15.73186636,3874.8,3874.6,1.47708492]
[1758821814545,13.2759093,3874.8,3874.6,1.47708492]
[1758821814746,2.148,3875.0,3874.6,1.47708492]
[1758821815046,5.299,3874.7,3874.6,1.47708492]
[1758821815214,5.304,3874.9,3874.6,1.47708492]
[1758821815410,2.148,3875.8,3874.8,2.58077836]
[1758821815611,2.148,3876.2,3875.0,2.58064516]
[1758821815827,5.322,3876.3,3875.1,0.6715]
[1758821816025,5.323,3876.2,3875.1,0.6715]
[1758821816345,32.149,3876.1,3874.6,1.47708492]
[1758821816551,2.58084496,3874.7,3874.6,1.47708492]
[1758821816783,2.5816445,3873.5,3872.1,0.50437521]
[1758821816936,2.58177781,3873.3,3873.2,1e-08]
[1758821817250,2.58177781,3873.3,3872.1,0.50437521]
[1758821817251,2.5821122,3872.8,3872.1,0.50437521]
[1758821817549,44.233,3872.7,3872.1,0.50437521]
[1758821817858,2.58251123,3872.2,3872.1,0.50437521]
[1758821818063,2.58251123,3872.2,3871.0,0.11]
[1758821818064,2.58324507,3871.1,3871.0,0.11]
[1758821818277,3.0,3871.0,3868.5,0.50437521]
[1758821818427,6.717,3870.9,3869.2,2.58451008]
[1758821818628,6.717,3870.9,3869.1,0.4369]
[1758821818629,6.717,3870.9,3869.8,2.21905871]
[1758821818946,9.439108,3870.8,3869.8,2.0173261]
[1758821819146,7.568,3870.7,3869.8,2.0173261]
[1758821819359,0.51059296,3871.5,3869.8,2.0173261]
[1758821819671,5.781386,3871.4,3869.9,0.69734046]
[1758821819825,5.442,3871.3,3870.0,0.69733979]
[1758821820025,0.404362,3874.6,3870.2,2.58384579]
[1758821820026,5.453,3871.7,3870.2,2.58384579]
[1758821820280,6.719,3872.3,3870.2,2.58384579]
[1758821820281,8.869,3872.4,3870.3,0.6715]
[1758821820601,6.459585,3872.3,3870.4,0.6715]
[1758821820737,2.15,3873.0,3870.4,0.6715]
[1758821820738,10.674735,3872.2,3870.4,0.6715]
[1758821820939,2.58264462,3872.0,3869.8,2.2519261]
[1758821821173,47.8128,3871.9,3869.8,2.0173261]
[1758821821375,37.667,3871.8,3869.8,2.0173261]
[1758821821542,2.58391961,3870.1,3869.8,2.0173261]
[1758821821737,15.881117,3870.0,3869.8,2.1461261]
[1758821821947,19.54184409,3869.9,3869.8,2.0173261]
[1758821822148,16.45574,3869.9,3869.8,2.0173261]
[1758821822351,2.002859,3869.9,3869.8,2.0173261]
[1758821822550,2.58438,3869.4,3869.3,0.09785853]
[1758821822749,6.243506,3869.8,3867.3,0.6715]
[1758821822984,17.68437,3869.7,3866.7,2.59414839]
[1758821823184,0.792,3869.5,3867.3,0.2468]
[1758821823393,11.439678,3869.4,3867.9,0.2468]
[1758821823552,7.816,3869.4,3868.0,0.4725]
[1758821823739,7.816,3869.4,3868.1,0.2468]
[1758821823740,6.15425,3869.3,3868.1,0.2468]
[1758821823941,2.09643,3869.3,3868.1,0.02585248]
[1758821824138,30.0,3869.3,3867.1,0.4725]
[1758821824373,2.075,3869.3,3867.9,2.58538224]
[1758821824559,7.052604,3869.3,3867.8,0.05]
[1758821824738,6.1754,3869.2,3867.9,0.02585382]
[1758821824941,28.8490206,3869.1,3867.8,0.05]
[1758821825176,2.151,3871.2,3867.9,1.913707]
[1758821825348,2.5793998,3876.9,3869.7,30.0]
[1758821825549,0.13438642,3873.5,3870.0,3.792]
[1758821825775,1.0,3877.7,3872.4,30.0]
[1758821825976,0.17,3876.8,3872.6,3.0]
[1758821826194,14.671717,3876.7,3872.8,3.0]
[1758821826484,3.982462,3876.6,3873.0,3.0]
[1758821826641,0.2313,3877.3,3873.3,0.792]
[1758821826980,0.139,3878.3,3878.2,2.57847355]
[1758821827144,6.458,3879.1,3877.8,2.57878178]
[1758821827344,6.725,3879.3,3879.1,2.57791755]
[1758821827547,0.2313,3881.1,3878.3,0.4725]
[1758821827747,2.152,3881.6,3880.7,2.57680102]
[1758821827942,1.951,3881.1,3880.7,2.57680102]
[1758821828159,0.2313,3881.9,3879.4,2.57770444]
[1758821828160,0.77570693,3882.0,3881.9,2.57605811]
[1758821828407,8.877,3883.4,3883.2,2.57515567]
[1758821828559,8.877,3883.4,3883.0,2.57529643]
[1758821828560,6.571,3883.2,3883.0,2.57529643]
[1758821828765,2.3823,3884.3,3882.0,2.57599175]
[1758821828959,2.3823,3884.3,3882.3,3.0]
[1758821828960,2.156788,3884.2,3882.3,3.0]
[1758821829210,8.813,3884.3,3882.1,0.4725]
[1758821829211,6.666,3884.1,3882.1,0.4725]
[1758821829411,6.723,3884.5,3883.8,2.57477759]
[1758821829412,6.665,3884.0,3883.8,2.57477759]
[1758821829714,0.2313,3885.0,3882.5,0.2468]
[1758821829908,6.722,3886.3,3883.0,5.57527859]
[1758821830063,6.722,3886.3,3883.7,3.0]
[1758821830264,2.447075,3886.2,3883.9,3.0]
[1758821830465,2.431,3886.1,3884.4,3.0]
[1758821830673,0.2431,3886.0,3885.8,2.5734076]
[1758821830908,2.151,3886.8,3884.5,0.7193]
[1758821830909,5.901239,3885.8,3884.5,0.7193]
[1758821831065,5.43295,3885.7,3883.7,0.4475]
[1758821831261,10.074952,3885.6,3883.7,0.4475]
[1758821831615,8.853,3885.6,3883.7,0.4475]
[1758821831895,6.712,3885.6,3885.2,0.128]
[1758821832061,2.107174,3885.2,3883.8,0.26974797]
[1758821832261,3.17446,3885.5,3880.8,1.0]
[1758821832460,18.9246,3885.4,3882.8,2.575461]
[1758821832698,3.0,3885.2,3882.2,0.4475]
[1758821832921,3.792,3885.0,3880.5,0.4475]
[1758821833099,3.792,3884.8,3882.5,2.57565082]
[1758821833401,3.792,3884.8,3881.5,2.57630875]
[1758821833402,28.624317,3884.7,3882.2,0.02575859]
[1758821833587,3.0,3884.5,3882.7,2.5754949]
[1758821833902,8.881,3884.4,3881.7,0.4475]
[1758821834207,3.492,3886.6,3881.7,0.4475]
[1758821834208,6.717,3887.5,3883.2,0.792]
[1758821834378,6.717,3887.5,3883.0,0.792]
[1758821834379,2.149,3888.0,3883.3,0.87565129]
[1758821834560,5.69,3887.9,3884.2,0.792]
[1758821834766,8.117836,3887.8,3884.5,0.792]
[1758821834966,12.694717,3887.7,3884.3,0.6915]
[1758821835195,0.3296,3887.6,3884.3,0.6915]
[1758821835504,3.0,3886.5,3882.4,0.4475]
[1758821835665,3.0,3886.5,3882.2,3.02332019]
[1758821835666,3.0,3886.3,3882.2,3.02332019]
[1758821835867,0.792,3885.9,3883.9,2.57472448]
[1758821836108,3.0,3885.7,3882.4,0.02575726]
[1758821836322,3.0,3885.7,3881.8,3.0]
[1758821836323,0.792,3885.2,3879.5,6.715]
[1758821836600,3.0,3884.8,3881.2,0.4475]
[1758821836905,18.775526,3884.7,3881.4,2.57638996]
[1758821837089,0.3296,3884.7,3883.0,2.57532702]
[1758821837268,0.3296,3885.5,3883.1,0.02575262]
[1758821837464,6.714,3885.2,3883.1,0.4475]
[1758821837802,3.792,3885.0,3882.1,0.244]
[1758821837966,3.792,3885.0,3882.0,0.4475]
[1758821837967,3.0,3884.8,3879.1,2.57789463]
[1758821838167,13.816317,3884.7,3881.8,2.57612313]
[1758821838367,2.57440016,3884.4,3881.4,2.57638791]
[1758821838675,13.024317,3884.3,3881.2,0.4475]
[1758821839001,3.0,3884.1,3881.3,0.244]
[1758821839200,11.75606,3884.0,3881.3,0.244]
[1758821839498,2.57487023,3883.7,3881.4,2.57638996]
[1758821839701,0.0881,3884.3,3881.4,2.57638996]
[1758821839702,3.0,3883.5,3881.4,2.5763677]
[1758821839875,12.139266,3883.4,3881.2,0.4475]
[1758821840063,5.082695,3883.3,3880.3,0.4475]
[1758821840404,7.554895,3883.2,3880.4,0.32686696]
[1758821840568,10.542863,3883.1,3880.5,0.6915]
[1758821840767,7.973244,3883.0,3880.5,0.6915]
[1758821841077,1.21142667,3887.2,3880.6,0.02576921]
[1758821841301,1.21142667,3887.2,3882.7,3.0]
[1758821841302,13.024317,3887.0,3882.7,3.0]
[1758821841467,18.012141,3886.9,3882.9,0.792]
[1758821841669,2.234724,3886.8,3883.5,3.0]
[1758821842007,0.128,3886.0,3885.3,0.128]
[1758821842217,0.128,3885.6,3884.9,0.128]
[1758821842367,2.147,3886.3,3884.3,2.147]
[1758821842567,2.147,3886.3,3884.4,0.4475]
[1758821842815,0.2147,3886.2,3884.5,2.57433389]
[1758821843021,9.442904,3886.1,3884.3,0.244]
[1758821843249,11.101167,3886.0,3883.4,0.244]
[1758821843456,11.101167,3886.0,3883.0,0.4475]
[1758821843457,19.127418,3885.9,3884.1,2.57457607]
[1758821843747,12.782817,3885.8,3883.1,2.147]
[1758821843953,19.459717,3885.7,3883.0,0.4475]
[1758821844151,2.57367134,3885.5,3883.1,3.0]
[1758821844301,15.623,3885.7,3883.1,3.0]
[1758821844302,12.694717,3885.4,3883.1,3.0]
[1758821844502,12.694717,3885.3,3883.0,0.4475]
[1758821844847,15.51002754,3885.3,3882.7,0.244]
[1758821845016,12.782817,3885.2,3882.3,0.4475]
[1758821845203,3.0,3885.0,3882.3,0.4475]
[1758821845404,2.57413509,3884.8,3883.6,2.57491905]
[1758821845604,2.574328,3884.6,3882.4,2.57572635]
[1758821845851,10.554485,3884.5,3882.0,0.244]
[1758821846145,10.554485,3884.5,3877.3,1.24338646]
[1758821846146,15.694717,3884.4,3882.5,2.57562679]
[1758821846301,5.253239,3884.3,3882.3,2.5757927]
[1758821846502,0.2415,3884.3,3883.5,2.57494006]
[1758821846702,0.2415,3885.0,3882.7,2.57552733]
[1758821846934,11.723794,3884.9,3882.8,0.4475]
[1758821847138,12.427531,3884.8,3883.4,2.57503733]
[1758821847341,6.21268,3883.4,3882.0,0.4475]
[1758821847642,6.21268,3883.4,3880.9,0.002]
[1758821847643,4.3854,3883.3,3881.5,2.57630568]
[1758821847845,0.2415,3883.8,3881.6,2.57625721]
[1758821848029,13.95815,3883.7,3882.0,2.57598334]
[1758821848234,13.95815,3883.7,3880.9,2.57866597]
[1758821848235,7.644444,3882.0,3880.9,0.002]
[1758821848431,3.0,3881.8,3880.9,0.002]
[1758821848636,28.255717,3881.9,3880.9,0.002]
[1758821848637,18.959088,3881.7,3880.9,0.002]
[1758821848830,12.694717,3881.6,3880.9,0.002]
[1758821849145,8.851,3881.5,3880.9,0.002]